bitfinex-derivatives/quotes_BNBF0:USTF0_20250329
["timestamp","ask_amount","ask_price","bid_price","bid_amount"]
[1743243599706,6.41606475,607.85,607.59,0.26736963]
[1743243599906,6.41606475,607.84,607.59,0.26736963]
[1743243600102,6.41606475,607.83,607.59,0.26736963]
[1743243600302,6.41606475,607.82,607.59,0.26736963]
[1743243600508,6.41606475,607.81,607.59,0.26736963]
[1743243600808,6.41606475,607.8,607.59,0.26736963]
[1743243601108,6.41606475,607.79,607.59,0.26736963]
[1743243601409,5.92260246,607.78,607.59,0.26736963]
[1743243601601,5.92260246,607.77,607.59,0.26736963]
[1743243601804,6.41605829,607.76,607.57,1.23078804]
[1743243602005,6.41888494,607.75,607.57,1.23078804]
[1743243602207,6.41888494,607.74,607.58,0.26738657]
[1743243602407,5.92538432,607.73,607.58,0.26738657]
[1743243602607,5.92538432,607.72,607.58,0.26738657]
[1743243602808,5.92538432,607.71,607.58,0.26738657]
[1743243603007,5.92538432,607.7,607.58,0.26738657]
[1743243603208,3.76745152,607.69,607.58,0.26738657]
[1743243603508,3.76745152,607.68,607.59,0.26740675]
[1743243603709,3.76745152,607.67,607.58,0.26740675]
[1743243603906,2.27899397,607.66,607.56,0.26740644]
[1743243604109,2.27899397,607.65,607.57,0.26740644]
[1743243604307,2.27899397,607.64,607.56,0.26740644]
[1743243604511,2.27899397,607.63,607.56,0.26740644]
[1743243604711,0.93028597,607.62,607.56,0.26740644]
[1743243604912,0.93028597,607.61,607.56,0.26740644]
[1743243605114,0.93028597,607.6,607.56,0.26740644]
[1743243605412,1.05722132,607.62,607.56,0.26740644]
[1743243605611,0.93024705,607.61,607.56,0.26740644]
[1743243605811,1.641162,607.89,607.56,0.26740644]
[1743243606014,6.42610328,607.88,607.56,0.26740644]
[1743243606215,6.42610328,607.87,607.55,2.952]
[1743243606512,6.42610328,607.86,607.55,2.952]
[1743243606709,6.42610328,607.85,607.55,2.952]
[1743243606913,6.42610328,607.84,607.55,2.952]
[1743243607116,6.42610328,607.83,607.55,2.952]
[1743243607309,6.42610328,607.82,607.55,2.952]
[1743243607514,6.42610328,607.81,607.55,2.952]
[1743243607715,6.42610328,607.8,607.55,2.952]
[1743243607911,3.51400026,607.79,607.55,4.681]
[1743243608111,6.42615276,607.78,607.55,4.681]
[1743243608311,6.42615276,607.77,607.55,4.681]
[1743243608511,6.42615276,607.76,607.55,4.681]
[1743243608709,6.42615276,607.75,607.55,4.681]
[1743243608914,5.93267112,607.74,607.55,4.681]
[1743243609115,5.93267112,607.73,607.55,4.681]
[1743243609418,5.93267112,607.72,607.55,4.681]
[1743243609618,5.93267112,607.71,607.55,4.681]
[1743243609814,5.93267112,607.7,607.55,4.681]
[1743243610022,3.77020942,607.69,607.55,4.681]
[1743243610319,3.77020942,607.68,607.55,4.681]
[1743243610618,2.28179658,607.67,607.55,4.681]
[1743243610818,2.28179658,607.66,607.55,4.681]
[1743243611013,2.28179658,607.65,607.55,4.681]
[1743243611212,1.05716976,607.66,607.55,4.681]
[1743243611213,2.28179658,607.64,607.55,4.681]
[1743243611411,2.28179658,607.63,607.55,4.681]
[1743243611616,2.28179658,607.62,607.55,4.681]
[1743243611816,0.93025802,607.61,607.55,4.681]
[1743243612012,1.05716976,607.66,607.55,4.681]
[1743243612217,1.05716976,607.61,607.55,4.681]
[1743243613019,2.62584472,607.96,607.55,4.681]
[1743243613219,6.42624478,607.95,607.55,4.681]
[1743243613418,6.42624478,607.94,607.55,4.681]
[1743243613616,6.42624478,607.93,607.55,4.681]
[1743243613821,6.42624478,607.92,607.55,4.681]
[1743243614025,6.42624478,607.91,607.55,4.681]
[1743243614319,6.42624478,607.9,607.55,4.681]
[1743243614521,6.42624478,607.89,607.55,4.681]
[1743243614716,6.42624478,607.88,607.55,4.681]
[1743243614918,6.42624478,607.87,607.55,4.681]
[1743243615118,6.42624478,607.86,607.55,4.681]
[1743243615423,6.42624478,607.85,607.55,4.681]
[1743243615723,6.42624478,607.84,607.55,4.681]
[1743243615924,6.42624478,607.83,607.56,0.2673668]
[1743243616122,6.42614016,607.82,607.56,0.2673668]
[1743243616322,6.42614016,607.81,607.56,0.2673668]
[1743243616519,6.42614016,607.8,607.56,0.2673668]
[1743243616723,5.93269102,607.79,607.56,0.2673668]
[1743243616918,5.93269102,607.78,607.56,0.2673668]
[1743243617121,5.93269102,607.77,607.55,4.681]
[1743243617318,5.93269102,607.76,607.55,4.681]
[1743243617618,5.93269102,607.75,607.55,4.681]
[1743243617818,1.641162,607.96,607.55,4.681]
[1743243617819,3.77020466,607.74,607.55,4.681]
[1743243618020,2.28180424,607.73,607.55,4.681]
[1743243618222,2.74866761,607.76,607.55,4.681]
[1743243618223,2.28180424,607.72,607.55,4.681]
[1743243618519,2.28180424,607.71,607.55,4.681]
[1743243618726,1.64106371,608.05,607.55,4.681]
[1743243618727,2.28180424,607.7,607.55,4.681]
[1743243618919,2.28180424,607.69,607.55,4.681]
[1743243619122,2.28180424,607.68,607.55,4.681]
[1743243619319,2.28180424,607.67,607.55,4.681]
[1743243619626,2.28180424,607.66,607.55,4.681]
[1743243619825,0.93025026,607.65,607.55,4.681]
[1743243620027,0.93025026,607.64,607.55,4.681]
[1743243620221,0.93025026,607.63,607.55,4.681]
[1743243620421,1.05717985,607.66,607.55,4.681]
[1743243620623,1.05717985,607.63,607.55,4.681]
[1743243621326,1.05717985,607.62,607.55,4.681]
[1743243621930,1.05717985,607.61,607.55,4.681]
[1743243622526,1.641162,608.01,607.55,4.681]
[1743243622725,6.42566644,608.0,607.55,4.681]
[1743243622929,6.42566644,607.99,607.55,4.681]
[1743243623132,6.42566644,607.98,607.55,4.681]
[1743243623329,6.42566644,607.97,607.55,4.681]
[1743243623532,6.42566644,607.96,607.55,4.681]
[1743243623735,6.42566644,607.95,607.55,4.681]
[1743243623936,6.42566644,607.94,607.55,4.681]
[1743243624135,6.42566644,607.93,607.55,4.681]
[1743243624336,6.42566644,607.92,607.55,4.681]
[1743243624636,6.42566644,607.91,607.55,4.681]
[1743243624838,6.42566644,607.9,607.55,4.681]
[1743243625036,6.42566644,607.89,607.55,4.681]
[1743243625436,6.42566644,607.88,607.55,4.681]
[1743243625734,6.42566644,607.87,607.55,4.681]
[1743243625935,6.42566644,607.86,607.55,4.681]
[1743243626236,6.42566644,607.85,607.55,4.681]
[1743243626437,6.42566644,607.84,607.55,4.681]
[1743243626628,6.42566644,607.83,607.55,4.681]
[1743243626833,6.42566644,607.82,607.55,4.681]
[1743243627033,2.7484112,607.85,607.55,4.681]
[1743243627034,6.42566644,607.81,607.55,4.681]
[1743243627235,6.42566644,607.8,607.55,4.681]
[1743243627431,6.42566644,607.79,607.55,4.681]
[1743243627637,6.42566644,607.78,607.55,4.681]
[1743243627832,6.42566644,607.77,607.55,4.681]
[1743243628034,6.42566644,607.76,607.55,4.681]
[1743243628238,6.42589751,607.75,607.55,4.681]
[1743243628538,6.42589751,607.74,607.55,4.681]
[1743243628735,6.42589751,607.73,607.55,4.681]
[1743243628933,6.42589751,607.72,607.55,4.681]
[1743243629137,6.42589751,607.71,607.55,4.681]
[1743243629339,6.42589751,607.7,607.55,4.681]
[1743243629538,6.42589751,607.69,607.55,4.681]
[1743243629736,6.42589751,607.68,607.55,1.729]
[1743243629935,6.42589751,607.67,607.55,1.729]
[1743243630139,8.06701796,607.66,607.55,1.729]
[1743243630336,7.41053574,607.65,607.55,1.729]
[1743243630541,8.06705951,607.64,607.55,0.49474285]
[1743243630843,6.423821,607.63,607.48,1.948]
[1743243631137,6.423821,607.62,607.48,1.948]
[1743243631343,2.7484112,607.64,607.48,1.948]
[1743243631344,6.423821,607.61,607.48,1.948]
[1743243631642,6.423821,607.6,607.48,1.948]
[1743243631843,6.423821,607.59,607.48,1.948]
[1743243632142,6.423821,607.58,607.48,1.948]
[1743243632337,6.42081813,607.57,607.48,1.948]
[1743243632542,6.42081813,607.56,607.48,1.948]
[1743243632738,6.42081813,607.55,607.48,1.948]
[1743243633042,6.42081813,607.54,607.48,1.948]
[1743243633241,5.92712967,607.53,607.48,1.948]
[1743243633442,2.7484112,607.54,607.48,1.948]
[1743243633443,5.92712967,607.52,607.48,1.948]
[1743243633638,5.92712967,607.51,607.48,1.948]
[1743243633842,5.92712967,607.5,607.48,1.948]
[1743243634044,3.76672345,607.49,607.48,1.948]
[1743243634241,2.83565787,607.49,607.48,1.948]
[1743243634539,3.76451453,607.49,607.48,1.948]
[1743243635046,4.82159576,607.49,607.48,1.948]
[1743243636239,2.40656845,607.49,607.48,1.948]
[1743243636445,4.82058616,607.49,607.48,1.948]
[1743243636645,3.3350368,607.49,607.48,1.948]
[1743243636949,3.3350368,607.49,607.39,1.797]
[1743243637147,2.27795557,607.48,607.39,1.797]
[1743243637344,2.27795557,607.47,607.39,1.797]
[1743243637544,2.27795557,607.46,607.39,1.797]
[1743243637747,0.92846835,607.45,607.39,1.797]
[1743243638046,2.27687472,607.44,607.39,1.797]
[1743243638247,0.92846835,607.43,607.39,1.797]
[1743243638445,0.92846835,607.42,607.39,1.797]
[1743243638647,0.92846835,607.41,607.39,1.797]
[1743243638842,1.05708123,607.45,607.39,1.797]
[1743243639149,2.27611709,607.44,607.39,1.797]
[1743243639448,0.92795023,607.43,607.39,1.797]
[1743243639649,0.92795023,607.42,607.39,1.797]
[1743243639842,0.92795023,607.41,607.39,1.797]
[1743243640043,1.641162,607.77,607.39,1.797]
[1743243640246,6.41044299,607.76,607.39,1.797]
[1743243640445,6.41029294,607.75,607.39,1.797]
[1743243640642,6.41029294,607.74,607.39,1.797]
[1743243640948,6.41029294,607.73,607.4,1.304]
[1743243641148,9.10615154,607.72,607.4,1.304]
[1743243641448,6.41029294,607.71,607.4,1.304]
[1743243641645,6.41029294,607.7,607.4,1.304]
[1743243641842,6.41029294,607.69,607.4,1.304]
[1743243642044,6.41029294,607.68,607.4,1.304]
[1743243642241,6.41029294,607.67,607.4,1.304]
[1743243642443,6.40938421,607.66,607.4,1.304]
[1743243642742,6.40938421,607.65,607.4,1.304]
[1743243642942,6.40938421,607.64,607.4,1.304]
[1743243643145,5.91567995,607.63,607.4,1.304]
[1743243643342,5.91567995,607.62,607.4,1.304]
[1743243643546,5.91567995,607.61,607.4,1.304]
[1743243643746,5.91567995,607.6,607.4,1.304]
[1743243643941,5.91567995,607.59,607.4,1.304]
[1743243644148,5.91567995,607.58,607.4,1.304]
[1743243644447,3.75913027,607.57,607.4,1.304]
[1743243644648,3.75913027,607.56,607.4,1.304]
[1743243644841,3.75913027,607.55,607.4,1.304]
[1743243645046,2.27526152,607.54,607.4,1.304]
[1743243645243,2.27526152,607.53,607.4,1.304]
[1743243645447,2.27526152,607.52,607.4,1.304]
[1743243645649,2.27526152,607.51,607.4,1.304]
[1743243645848,2.27526152,607.5,607.4,1.304]
[1743243646047,0.92741797,607.49,607.4,1.304]
[1743243646240,1.03686869,607.52,607.4,1.304]
[1743243646241,0.92741797,607.48,607.4,1.304]
[1743243646445,0.92741797,607.47,607.4,1.304]
[1743243646645,1.03686869,607.48,607.4,1.304]
[1743243646844,0.92668035,607.47,607.4,1.304]
[1743243647042,0.92668035,607.46,607.4,1.304]
[1743243647243,0.92668035,607.45,607.4,1.304]
[1743243647443,1.03686869,607.47,607.4,1.304]
[1743243647651,0.926562,607.46,607.4,1.304]
[1743243647847,0.926562,607.45,607.4,1.304]
[1743243648052,0.49370371,607.87,607.4,1.304]
[1743243648248,6.4027554,607.86,607.4,1.304]
[1743243648448,6.40206216,607.85,607.4,1.304]
[1743243648646,6.40206216,607.84,607.4,1.304]
[1743243648843,6.40206216,607.83,607.4,1.304]
[1743243649047,6.40206216,607.82,607.4,1.304]
[1743243649247,6.40206216,607.81,607.4,1.304]
[1743243649442,6.40206216,607.8,607.4,1.304]
[1743243649648,6.40206216,607.79,607.4,1.304]
[1743243649845,6.40206216,607.78,607.4,1.304]
[1743243650046,6.40206216,607.77,607.4,1.304]
[1743243650349,6.40206216,607.76,607.4,1.304]
[1743243650651,6.40149383,607.75,607.4,1.304]
[1743243650848,6.40149383,607.74,607.4,1.304]
[1743243651042,6.40149383,607.73,607.4,1.304]
[1743243651247,6.40149383,607.72,607.4,1.304]
[1743243651445,6.40149383,607.71,607.4,1.304]
[1743243651646,5.90779,607.7,607.4,1.304]
[1743243651951,5.90779,607.69,607.4,1.304]
[1743243652152,5.90779,607.68,607.4,2.876]
[1743243652352,5.90779,607.67,607.4,2.876]
[1743243652555,5.90779,607.66,607.4,2.876]
[1743243652753,5.90779,607.65,607.4,2.876]
[1743243653053,5.90779,607.64,607.4,2.876]
[1743243653255,5.90779,607.63,607.4,2.876]
[1743243653455,3.75455231,607.62,607.4,2.876]
[1743243653651,3.75455231,607.61,607.4,2.876]
[1743243653857,3.75455231,607.6,607.4,2.876]
[1743243654057,3.75455231,607.59,607.4,2.876]
[1743243654250,2.27222692,607.58,607.4,2.876]
[1743243654457,2.69287437,607.59,607.4,2.876]
[1743243654657,2.27155857,607.58,607.4,2.876]
[1743243654858,2.27155857,607.57,607.4,2.876]
[1743243655057,0.92608646,607.56,607.4,2.876]
[1743243655255,0.92608646,607.55,607.4,2.876]
[1743243655452,0.92608646,607.54,607.4,2.876]
[1743243655752,1.03572091,607.56,607.4,1.572]
[1743243656257,0.49363571,607.9,607.4,1.572]
[1743243656453,6.40001867,607.89,607.4,1.572]
[1743243656658,2.62146727,608.02,607.4,1.572]
[1743243656659,6.40001867,607.88,607.4,1.572]
[1743243656953,6.40001867,607.87,607.4,1.572]
[1743243657158,6.39993665,607.86,607.4,1.572]
[1743243657357,6.39993665,607.85,607.4,1.572]
[1743243657558,5.90638296,607.84,607.4,1.572]
[1743243657761,5.90638296,607.83,607.4,1.572]
[1743243657955,5.90638296,607.82,607.4,1.572]
[1743243658159,5.90638296,607.81,607.4,1.572]
[1743243658359,5.90638296,607.8,607.4,1.572]
[1743243658553,5.90638296,607.79,607.4,3.151]
[1743243658751,3.75350398,607.78,607.41,0.26734875]
[1743243658959,2.69141709,607.81,607.41,0.26734875]
[1743243658960,3.75350398,607.77,607.41,0.26734875]
[1743243659157,2.27168575,607.76,607.41,0.26734875]
[1743243659356,2.27168575,607.75,607.41,0.26734875]
[1743243659558,2.27168575,607.74,607.41,0.26734875]
[1743243659760,0.92613639,607.73,607.41,0.26734875]
[1743243659960,0.92613639,607.72,607.41,0.26734875]
[1743243660161,1.03516042,607.74,607.41,0.26734875]
[1743243660360,0.92611361,607.73,607.41,0.26734875]
[1743243660555,0.92611361,607.72,607.41,0.26734875]
[1743243660758,0.92611361,607.71,607.41,0.26734875]
[1743243660956,0.98030527,608.01,607.41,0.26734875]
[1743243661159,6.39983533,608.0,607.41,0.26734875]
[1743243661361,6.39983533,607.99,607.41,0.26734875]
[1743243661561,6.39983533,607.98,607.41,0.26734875]
[1743243661755,6.39983533,607.97,607.41,0.26734875]
[1743243661955,3.99193516,607.96,607.41,0.26734875]
[1743243662160,6.40005248,607.95,607.41,0.26734875]
[1743243662356,6.40005248,607.94,607.41,0.26734875]
[1743243662558,6.40005248,607.93,607.41,0.26734875]
[1743243662860,6.40005248,607.92,607.41,0.26734875]
[1743243663060,6.40005248,607.91,607.41,0.26734875]
[1743243663261,6.40005248,607.9,607.41,0.26734875]
[1743243663454,6.40005248,607.89,607.41,0.26734875]
[1743243663656,6.40005248,607.88,607.41,0.26734875]
[1743243663861,6.40005248,607.87,607.41,0.26734875]
[1743243664060,6.40005248,607.86,607.41,0.26734875]
[1743243664261,6.40005248,607.85,607.41,0.26734875]
[1743243664461,6.40005248,607.84,607.41,0.26734875]
[1743243664765,6.40005248,607.83,607.41,0.26734875]
[1743243664963,6.40006,607.82,607.41,0.26734875]
[1743243665159,5.90654652,607.81,607.41,0.26734875]
[1743243665357,5.90654652,607.8,607.41,0.26734875]
[1743243665663,3.75366701,607.79,607.41,0.26734875]
[1743243665864,3.75366701,607.78,607.41,0.26734875]
[1743243666065,3.75366701,607.77,607.41,0.26734875]
[1743243666363,3.75388408,607.76,607.41,0.26734875]
[1743243666556,2.27174866,607.75,607.41,0.26734875]
[1743243666761,2.27174866,607.74,607.41,0.26734875]
[1743243666961,2.27174866,607.73,607.41,0.26734875]
[1743243667162,2.27174866,607.72,607.41,0.26734875]
[1743243667362,0.92619897,607.71,607.41,0.26734875]
[1743243667566,0.92619897,607.7,607.41,0.26734875]
[1743243667763,0.92619897,607.69,607.41,0.26734875]
[1743243667965,0.98037334,607.97,607.41,0.26734875]
[1743243668165,6.40138966,607.96,607.41,0.26734875]
[1743243668357,0.98037334,607.98,607.41,0.26734875]
[1743243668358,6.40138966,607.95,607.41,0.26734875]
[1743243668562,9.09356445,607.94,607.41,0.26734875]
[1743243668864,6.40138966,607.93,607.41,0.26734875]
[1743243669159,6.40138966,607.92,607.41,0.26734875]
[1743243669366,6.40138966,607.91,607.41,0.26734875]
[1743243669665,2.69217479,607.93,607.41,0.26734875]
[1743243669666,6.40138966,607.9,607.41,0.26734875]
[1743243669863,6.40138966,607.89,607.41,0.26734875]
[1743243670059,6.40138966,607.88,607.41,0.26734875]
[1743243670265,6.40138966,607.87,607.41,0.26734875]
[1743243670465,6.40138966,607.86,607.41,0.26734875]
[1743243670660,6.40138966,607.85,607.41,0.26734875]
[1743243670864,6.40138966,607.84,607.41,0.26734875]
[1743243671059,6.40138966,607.83,607.41,0.26734875]
[1743243671264,5.90789534,607.82,607.41,0.26734875]
[1743243671463,2.69217479,607.85,607.41,0.26734875]
[1743243671464,5.90789534,607.81,607.41,0.26734875]
[1743243671661,5.90789534,607.8,607.41,0.26734875]
[1743243671862,5.90789534,607.79,607.41,0.26734875]
[1743243672059,3.49999312,607.78,607.41,0.26734875]
[1743243672266,5.9090012,607.77,607.41,0.26734875]
[1743243672562,6.44733407,607.76,607.41,0.26734875]
[1743243672761,3.75515928,607.75,607.41,0.26734875]
[1743243672960,3.75515928,607.74,607.41,0.26734875]
[1743243673162,2.27269277,607.73,607.41,0.26734875]
[1743243673364,2.27269277,607.72,607.41,0.26734875]
[1743243673566,2.27269277,607.71,607.41,0.26734875]
[1743243673867,1.03545184,607.73,607.41,0.26734875]
[1743243673868,2.27269277,607.7,607.41,0.26734875]
[1743243674067,2.27269277,607.69,607.41,0.26734875]
[1743243674262,0.92654157,607.68,607.41,0.26734875]
[1743243674463,0.92654157,607.67,607.41,0.26734875]
[1743243674664,0.92654157,607.66,607.41,0.26734875]
[1743243674861,0.9267188,607.65,607.41,0.26734875]
[1743243675069,0.92672645,607.64,607.42,0.26734217]
[1743243675267,0.98074592,607.94,607.41,0.26734217]
[1743243675468,6.40434337,607.93,607.42,0.26734217]
[1743243675763,6.40434337,607.92,607.43,0.26734217]
[1743243675968,6.40434337,607.91,607.42,0.26734217]
[1743243676165,6.40459418,607.9,607.42,0.26734217]
[1743243676363,6.40459418,607.89,607.42,0.26734217]
[1743243676566,6.40459418,607.88,607.42,0.26734217]
[1743243676868,2.69350411,607.9,607.42,0.26734217]
[1743243676869,6.40459418,607.87,607.42,0.26734217]
[1743243677068,6.40459418,607.86,607.42,0.26734217]
[1743243677269,6.40459418,607.85,607.42,0.26734217]
[1743243677569,6.40459418,607.84,607.42,0.26734217]
[1743243677767,6.40459418,607.83,607.42,0.26734217]
[1743243677965,6.40459418,607.82,607.42,0.26734217]
[1743243678169,9.09809829,607.82,607.42,0.26734217]
[1743243678368,6.40459418,607.81,607.42,0.26734217]
[1743243678571,6.40459418,607.8,607.42,0.26734217]
[1743243678766,6.40459418,607.79,607.42,0.26734217]
[1743243678967,6.40459418,607.78,607.42,0.26734217]
[1743243679172,6.40459418,607.77,607.42,0.26734217]
[1743243679373,6.40459418,607.76,607.42,0.26734217]
[1743243679671,5.91104956,607.75,607.42,0.26734217]
[1743243679871,5.91104956,607.74,607.42,0.26734217]
[1743243680066,5.91104956,607.73,607.42,0.26734217]
[1743243680269,5.91202623,607.72,607.42,0.26734217]
[1743243680470,3.75743935,607.71,607.42,0.26734217]
[1743243680670,3.75823698,607.7,607.42,0.26734217]
[1743243680870,3.75823698,607.69,607.42,0.26734217]
[1743243681173,2.27455442,607.68,607.42,0.26734217]
[1743243681473,2.27455442,607.67,607.42,0.26734217]
[1743243681769,2.27455442,607.67,607.41,1.96]
[1743243681770,2.27455442,607.66,607.41,1.96]
[1743243681973,2.27455442,607.65,607.41,1.96]
[1743243682176,2.27455442,607.64,607.41,1.96]
[1743243682371,2.27455442,607.63,607.41,1.96]
[1743243682569,2.27455442,607.62,607.41,1.96]
[1743243682769,2.27455442,607.61,607.41,1.96]
[1743243682969,2.27455442,607.6,607.41,1.96]
[1743243683174,2.27455442,607.59,607.41,1.96]
[1743243683373,2.27455442,607.58,607.41,1.96]
[1743243683575,2.27455442,607.57,607.41,1.96]
[1743243683775,1.03596312,607.58,607.41,1.96]
[1743243683776,2.27455442,607.56,607.41,1.96]
[1743243683975,2.27850561,607.55,607.41,1.96]
[1743243684270,0.9273016,607.54,607.4,1.542]
[1743243684475,0.92778798,607.53,607.4,1.542]
[1743243684775,0.92778798,607.52,607.4,1.542]
[1743243684979,1.03596312,607.53,607.33,1.716]
[1743243685274,0.92788485,607.52,607.36,1.411]
[1743243685475,0.98209595,607.97,607.36,1.411]
[1743243685775,7.40279905,607.96,607.36,1.411]
[1743243685970,6.4207031,607.95,607.36,1.411]
[1743243686167,6.4207031,607.94,607.36,1.411]
[1743243686373,6.4207031,607.93,607.36,1.411]
[1743243686574,9.11807578,607.92,607.36,1.411]
[1743243686769,0.98209595,607.88,607.36,1.411]
[1743243686967,1.63682659,607.78,607.36,1.411]
[1743243687173,0.98209595,607.71,607.37,2.01854742]
[1743243687379,0.98209595,607.68,607.37,1.751]
[1743243687571,6.4207031,607.67,607.37,1.751]
[1743243687870,6.4207031,607.66,607.37,1.751]
[1743243688070,6.4207031,607.65,607.37,1.751]
[1743243688277,6.4207031,607.64,607.38,1.249]
[1743243688571,6.42226649,607.63,607.38,1.249]
[1743243688772,6.42226649,607.62,607.38,1.249]
[1743243688977,6.42226649,607.61,607.38,1.249]
[1743243689180,6.42226649,607.6,607.38,1.249]
[1743243689377,6.42226649,607.59,607.38,1.249]
[1743243689571,6.42226649,607.58,607.38,1.249]
[1743243689771,6.42226649,607.57,607.38,1.249]
[1743243689971,6.42226649,607.56,607.38,1.249]
[1743243690175,6.42226649,607.55,607.38,1.249]
[1743243690376,6.42226649,607.54,607.38,1.249]
[1743243690578,6.42226649,607.53,607.38,1.249]
[1743243690777,5.92857232,607.52,607.38,1.249]
[1743243690982,5.92852139,607.51,607.38,1.249]
[1743243691179,2.41345071,607.51,607.38,1.249]
[1743243691377,2.16319792,607.5,607.38,1.249]
[1743243691877,3.51519662,607.49,607.38,1.249]
[1743243692077,2.16319792,607.49,607.38,1.249]
[1743243692275,2.69737268,607.56,607.38,1.249]
[1743243692477,2.41364032,607.48,607.38,1.249]
[1743243692674,6.422855,607.47,607.38,1.249]
[1743243692879,5.92905467,607.46,607.38,1.249]
[1743243693077,5.92905467,607.45,607.38,1.249]
[1743243693274,3.76572276,607.44,607.38,1.249]
[1743243693578,3.76572276,607.43,607.38,1.249]
[1743243693780,2.28040564,607.42,607.38,1.249]
[1743243693978,2.28040564,607.41,607.38,1.249]
[1743243694181,2.28040564,607.4,607.38,1.249]
[1743243694481,0.9283232,607.39,607.38,1.249]
[1743243699682,2.27893758,607.39,607.38,1.249]
[1743243700087,3.76280985,607.39,607.38,1.249]
[1743243700787,4.79935734,607.39,607.38,1.249]
[1743243701184,3.31552618,607.39,607.33,1.716]
[1743243701387,2.27897869,607.38,607.33,1.716]
[1743243701689,5.92310486,607.37,607.33,1.716]
[1743243701890,5.92310486,607.36,607.33,1.716]
[1743243702086,4.99460931,607.35,607.33,1.716]
[1743243702286,5.92166205,607.34,607.33,1.716]
[1743243702890,8.61672441,607.34,607.33,1.716]
[1743243703091,6.45605497,607.34,607.33,1.716]
[1743243704094,2.69506236,607.34,607.33,1.716]
[1743243704295,6.45373848,607.34,607.33,1.716]
[1743243704496,4.79522361,607.34,607.33,1.716]
[1743243704697,6.95433382,607.34,607.33,1.716]
[1743243704998,6.95433382,607.34,607.19,2.043]
[1743243704999,7.44823011,607.34,607.19,2.043]
[1743243705190,5.91778633,607.33,607.19,2.043]
[1743243705391,5.91778633,607.32,607.19,2.043]
[1743243705597,5.91778633,607.31,607.19,2.043]
[1743243705792,5.91778633,607.3,607.19,2.043]
[1743243705999,5.91778633,607.29,607.19,2.043]
[1743243706201,5.91429085,607.28,607.19,2.043]
[1743243706501,5.91429085,607.27,607.19,2.043]
[1743243706701,3.75641167,607.26,607.19,2.043]
[1743243706902,3.75641167,607.25,607.19,2.043]
[1743243707202,3.75591138,607.24,607.19,2.043]
[1743243707500,2.27472724,607.23,607.19,2.043]
[1743243707696,2.27472724,607.22,607.19,2.043]
[1743243707900,2.27472724,607.21,607.19,2.043]
[1743243708096,1.03654749,607.24,607.19,2.043]
[1743243708302,1.03654749,607.21,607.19,2.043]
[1743243708802,0.98040001,607.51,607.19,2.043]
[1743243709002,6.40396674,607.5,607.19,2.043]
[1743243709296,6.40318118,607.49,607.19,2.043]
[1743243709501,6.40318118,607.48,607.19,2.043]
[1743243709802,6.40318118,607.47,607.19,2.043]
[1743243710006,6.40318118,607.46,607.19,2.043]
[1743243710301,7.38358119,607.45,607.19,2.043]
[1743243710502,6.40318118,607.44,607.19,2.043]
[1743243710802,6.40318118,607.43,607.19,2.043]
[1743243710995,6.40318118,607.42,607.19,2.043]
[1743243711196,6.40318118,607.41,607.19,2.043]
[1743243711397,6.40318118,607.4,607.19,2.043]
[1743243711597,6.40318118,607.39,607.19,2.043]
[1743243711797,6.40318118,607.38,607.19,2.043]
[1743243711998,6.40318118,607.37,607.19,2.043]
[1743243712302,6.40066934,607.36,607.19,2.043]
[1743243712498,6.40066934,607.35,607.19,2.043]
[1743243712705,6.40066934,607.34,607.19,2.043]
[1743243713002,6.40066934,607.33,607.19,2.043]
[1743243713302,5.90670995,607.32,607.19,2.043]
[1743243713502,5.90670995,607.31,607.19,2.043]
[1743243713703,5.90670995,607.3,607.19,2.043]
[1743243713902,5.90670995,607.29,607.19,2.043]
[1743243714097,3.75087137,607.28,607.19,2.043]
[1743243714302,3.75087137,607.27,607.19,2.043]
[1743243714603,4.78505628,607.26,607.19,2.043]
[1743243714802,3.75087137,607.25,607.19,2.043]
[1743243715004,2.27181152,607.24,607.19,2.043]